[Event "Lueneburg Open-B 2019"]
[Site "Lueneburg"]
[Date "2019.08.04"]
[Round "2.16"]
[White "Ahrens, Gunnar"]
[Black "Hotz, Herbert"]
[Result "1-0"]
[ECO "A05"]
[WhiteElo "1764"]
[BlackElo "1547"]
[Annotator "NA"]
[PlyCount "43"]
[EventDate "2019.08.03"]
[EventType "swiss"]
[EventCountry "GER"]
[SourceTitle "playchess.com"]
[Source "ChessBase"]
[SourceQuality "1"]
[TimeControl "40/5400+30:1800+30"]

1. a3 {[%emt 0:00:00]} Nf6 {[%emt 0:00:00]} 2. Nf3 {[%emt 0:00:00]} g6 {[%emt 0:00:07]} 3. c4 {[%emt 0:00:38]} Bg7 {[%emt 0:00:18]} 4. Nc3 {[%emt 0:00:04]} O-O {[%emt 0:00:17]} 5. d4 {[%emt 0:02:04]} d6 {[%emt 0:00:39]} 6. e3 {[%emt 0:01:10]} c5 {[%emt 0:04:31]} 7. Be2 {[%emt 0:01:32]} cxd4 {[%emt 0:04:32]} 8. Nxd4 {[%emt 0:00:43]} Nc6 {[%emt 0:01:02]} 9. O-O {[%emt 0:00:53]} Qd7 {[%emt 0:01:23]} 10. h3 {[%emt 0:00:57]} b6 {[%emt 0:00:45]} 11. Nxc6 {[%emt 0:01:15]} Qxc6 {[%emt 0:01:55]} 12. Bf3 {[%emt 0:00:30]} d5 {[%emt 0:01:01]} 13. Nxd5 {[%emt 0:00:55]} Qc5 {[%emt 0:08:53]} 14. Nxf6+ {[%emt 0:00:51]} Bxf6 {[%emt 0:00:26]} 15. Bxa8 {[%emt 0:00:15]} Bxh3 {[%emt 0:01:37]} 16. Qd5 {[%emt 0:02:37]} Be6 {[%emt 0:02:53]} 17. Qxc5 {[%emt 0:00:34]} bxc5 {[%emt 0:00:08]} 18. Bd5 {[%emt 0:00:16]} Bd7 {[%emt 0:03:07]} 19. a4 {[%emt 0:01:12]} Rb8 {[%emt 0:01:18]} 20. Rd1 {[%emt 0:01:25]} e6 {[%emt 0:00:47]} 21. Bf3 {[%emt 0:01:18]} Rb4 {[%emt 0:01:09]} 22. Rxd7 {[%emt 0:00:27]} 1-0

[Event "Lueneburg Open-B 2019"]
[Site "Lueneburg"]
[Date "2019.08.04"]
[Round "2.17"]
[White "Levink, Clemens"]
[Black "Rothenberg, Anke"]
[Result "1/2-1/2"]
[ECO "B12"]
[WhiteElo "1719"]
[BlackElo "1467"]
[Annotator "NA"]
[PlyCount "41"]
[EventDate "2019.08.03"]
[EventType "swiss"]
[EventCountry "GER"]
[SourceTitle "playchess.com"]
[Source "ChessBase"]
[SourceQuality "1"]
[TimeControl "40/5400+30:1800+30"]

1. e4 {[%emt 0:00:00]} c6 {[%emt 0:00:00]} 2. d4 {[%emt 0:00:00]} d5 {[%emt 0:00:00]} 3. f3 {[%emt 0:00:00]} e6 {[%emt 0:00:14]} 4. Nc3 {[%emt 0:00:59]} Bb4 {[%emt 0:00:17]} 5. Nge2 {[%emt 0:04:01]} dxe4 {[%emt 0:02:49]} 6. fxe4 {[%emt 0:00:09]} Qh4+ {[%emt 0:01:24]} 7. Ng3 {[%emt 0:00:34]} Bxc3+ {[%emt 0:06:37]} 8. bxc3 {[%emt 0:00:18]} Ne7 {[%emt 0:00:35]} 9. Bd3 {[%emt 0:02:03]} Ng6 {[%emt 0:08:55]} 10. O-O {[%emt 0:02:22]} b6 {[%emt 0:03:27]} 11. e5 {[%emt 0:08:04]} Ba6 {[%emt 0:03:07]} 12. Bxa6 {[%emt 0:09:10]} Nxa6 {[%emt 0:00:57]} 13. Qf3 {[%emt 0:02:47]} O-O {[%emt 0:03:35]} 14. Ne4 {[%emt 0:07:28]} Qe7 {[%emt 0:07:45]} 15. Qe2 {[%emt 0:10:34]} Nb8 {[%emt 0:10:22]} 16. a4 {[%emt 0:05:36]} c5 {[%emt 0:02:36]} 17. Ba3 {[%emt 0:02:06]} Nd7 {[%emt 0:01:22]} 18. Rf2 {[%emt 0:02:26]} Rac8 {[%emt 0:05:19]} 19. Raf1 {[%emt 0:01:19]} Rc7 {[%emt 0:02:37]} 20. Qh5 {[%emt 0:04:40]} Qh4 {[%emt 0:03:21]} 21. Bc1 {[%emt 0:35:54]} 1/2-1/2

[Event "Lueneburg Open-B 2019"]
[Site "Lueneburg"]
[Date "2019.08.04"]
[Round "2.18"]
[White "Martinez Martin, David"]
[Black "Cordsen, Heinrich"]
[Result "1/2-1/2"]
[ECO "C07"]
[WhiteElo "2388"]
[BlackElo "1685"]
[Annotator "ChessBase"]
[PlyCount "63"]
[EventDate "2019.08.03"]
[EventType "swiss"]
[EventCountry "GER"]
[SourceTitle "playchess.com"]
[Source "ChessBase"]
[SourceQuality "1"]
[TimeControl "40/5400+30:1800+30"]

1. e4 {[%emt 0:00:00]} e6 {[%emt 0:00:00]} 2. d4 {[%emt 0:00:00]} d5 {[%emt 1:31:00]} 3. Nc3 {[%emt 1:31:30]} Nf6 {[%emt 0:00:00]} 4. e5 {[%emt 0:00:00]} Nfd7 {[%emt 0:00:00]} 5. Nf3 {[%emt 0:00:00]} c5 {[%emt 0:00:00]} 6. Ne2 {[%emt 0:00:00]} cxd4 {[%emt 0:00:00]} 7. Nexd4 {[%emt 0:00:00]} Nc6 {[%emt 0:00:00]} 8. c3 {[%emt 0:00:00]} Ndxe5 {[%emt 0:00:00]} 9. Be3 {[%emt 0:00:00]} Bd7 {[%emt 0:00:00]} 10. Be2 {[%emt 0:00:00]} a6 {[%emt 0:00:00]} 11. a4 {[%emt 0:00:00]} Bd6 {[%emt 0:00:00]} 12. a5 {[%emt 0:00:00]} O-O {[%emt 0:00:00]} 13. h3 {[%emt 0:00:00]} Nxa5 {[%emt 0:00:00]} 14. O-O {[%emt 0:00:00]} Nac4 {[%emt 0:00:00]} 15. Bc1 {[%emt 0:00:00]} Rc8 {[%emt 0:00:00]} 16. Re1 {[%emt 0:00:00]} Nxf3+ {[%emt 0:00:00]} 17. Nxf3 {[%emt 0:00:00]} Bb8 {[%emt 0:00:00]} 18. Bd3 {[%emt 0:00:00]} h6 {[%emt 0:00:00]} 19. Ng5 {[%emt 0:00:00]} g6 {[%emt 0:00:00]} 20. Nf3 {[%emt 0:00:00]} Kg7 {[%emt 0:00:00]} 21. b3 {[%emt 0:00:00]} Nd6 {[%emt 0:00:00]} 22. Qd2 {[%emt 0:00:00]} Rh8 {[%emt 0:00:00]} 23. c4 {[%emt 0:00:00]} dxc4 {[%emt 0:00:00]} 24. Bxg6 {[%emt 0:00:00]} Kxg6 {[%emt 0:00:00]} 25. Ne5+ {[%emt 0:00:00]} Kg7 {[%emt 0:00:00]} 26. Qd4 {[%emt 0:00:00]} Kh7 {[%emt 0:00:00]} 27. bxc4 {[%emt 0:00:00]} Rxc4 {[%emt 0:00:52]} 28. Nxc4 {[%emt 0:00:00]} Nxc4 {[%emt 0:00:17]} 29. Qxc4 {[%emt 0:00:00]} Qf6 {[%emt 0:01:39]} 30. Qd3+ {[%emt 0:00:00]} Kg7 {[%emt 0:00:21]} 31. Rb1 {[%emt 0:02:46]} Bb5 {[%emt 0:11:21]} 32. Qd1 {[%emt 0:11:44]} 1/2-1/2

[Event "Lueneburg Open-B 2019"]
[Site "Lueneburg"]
[Date "2019.08.04"]
[Round "2.19"]
[White "Schencke, Guenther"]
[Black "Buchinger, Alexis"]
[Result "1-0"]
[ECO "D35"]
[WhiteElo "1668"]
[BlackElo "1346"]
[Annotator "NA"]
[PlyCount "95"]
[EventDate "2019.08.03"]
[EventType "swiss"]
[EventCountry "GER"]
[SourceTitle "playchess.com"]
[Source "ChessBase"]
[SourceQuality "1"]
[TimeControl "40/5400+30:1800+30"]

1. d4 {[%emt 0:00:00]} d5 {[%emt 0:00:00]} 2. c4 {[%emt 0:00:00]} Nf6 {[%emt 0:00:00]} 3. Nc3 {[%emt 0:00:00]} e6 {[%emt 0:00:00]} 4. cxd5 {[%emt 0:00:09]} exd5 {[%emt 0:00:09]} 5. Bg5 {[%emt 0:00:10]} Be6 {[%emt 0:00:25]} 6. e3 {[%emt 0:02:25]} h6 {[%emt 0:00:28]} 7. Bh4 {[%emt 0:00:23]} Nc6 {[%emt 0:01:06]} 8. Bd3 {[%emt 0:03:27]} Be7 {[%emt 0:02:42]} 9. Rc1 {[%emt 0:01:11]} Nd7 {[%emt 0:00:54]} 10. Bg3 {[%emt 0:02:10]} a6 {[%emt 0:01:26]} 11. Nge2 {[%emt 0:02:23]} Nb6 {[%emt 0:01:15]} 12. O-O {[%emt 0:01:20]} O-O {[%emt 0:03:38]} 13. Na4 {[%emt 0:04:11]} Nxa4 {[%emt 0:01:19]} 14. Qxa4 {[%emt 0:00:03]} Bd6 {[%emt 0:01:06]} 15. Bxd6 {[%emt 0:05:28]} Qxd6 {[%emt 0:00:37]} 16. Rc3 {[%emt 0:00:35]} Rfe8 {[%emt 0:01:58]} 17. Qb3 {[%emt 0:02:52]} Rab8 {[%emt 0:01:45]} 18. Qc2 {[%emt 0:01:34]} Nb4 {[%emt 0:01:27]} 19. Qb1 {[%emt 0:05:28]} Nxd3 {[%emt 0:00:47]} 20. Qxd3 {[%emt 0:00:04]} Bg4 {[%emt 0:01:55]} 21. Rfc1 {[%emt 0:01:44]} Bxe2 {[%emt 0:00:29]} 22. Qxe2 {[%emt 0:00:02]} Re7 {[%emt 0:00:29]} 23. Qc2 {[%emt 0:00:46]} c6 {[%emt 0:00:27]} 24. Qb3 {[%emt 0:01:06]} Rc7 {[%emt 0:01:37]} 25. Qb6 {[%emt 0:01:16]} Rd8 {[%emt 0:01:41]} 26. a4 {[%emt 0:05:16]} Rdd7 {[%emt 1:15:20]} 27. b4 {[%emt 0:00:37]} Kh7 {[%emt 0:00:00]} 28. Qa5 {[%emt 0:06:11]} b5 {[%emt 0:00:00]} 29. Rc5 {[%emt 0:07:45]} Ra7 {[%emt 0:00:00]} 30. Rxc6 {[%emt 0:01:08]} Qb8 {[%emt 0:00:00]} 31. Rxa6 {[%emt 0:06:41]} Rxa6 {[%emt 0:00:00]} 32. Qxa6 {[%emt 0:00:07]} bxa4 {[%emt 0:00:00]} 33. Qxa4 {[%emt 0:01:37]} Rc7 {[%emt 0:00:00]} 34. Rxc7 {[%emt 0:01:09]} Qxc7 {[%emt 0:00:00]} 35. h3 {[%emt 0:02:43]} Qc1+ {[%emt 0:00:00]} 36. Kh2 {[%emt 0:00:16]} Qe1 {[%emt 0:00:00]} 37. Kg3 {[%emt 0:00:39]} h5 {[%emt 0:00:00]} 38. Qb3 {[%emt 0:00:51]} h4+ {[%emt 0:00:00]} 39. Kf3 {[%emt 0:02:19]} g5 {[%emt 0:00:00]} 40. b5 {[%emt 0:00:46]} f5 {[%emt 0:00:00]} 41. Qd3 {[%emt 0:31:59]} Kh6 {[%emt 0:00:00]} 42. b6 {[%emt 0:03:50]} Qa1 {[%emt 0:00:00]} 43. b7 {[%emt 0:00:50]} Qa7 {[%emt 0:00:00]} 44. Qb3 {[%emt 0:03:16]} Qb8 {[%emt 0:00:00]} 45. Qxd5 {[%emt 0:01:20]} Kh5 {[%emt 0:00:00]} 46. Qxf5 {[%emt 0:10:59]} Qxb7+ {[%emt 0:00:00]} 47. Qe4 {[%emt 0:00:02]} Qb3 {[%emt 0:00:00]} 48. Qh7# {[%emt 0:01:02]} 1-0

[Event "Lueneburg Open-B 2019"]
[Site "Lueneburg"]
[Date "2019.08.04"]
[Round "2.21"]
[White "Stolzenwald, Karl-Heinz"]
[Black "Krueger, Dietrich"]
[Result "1-0"]
[ECO "A00"]
[WhiteElo "1600"]
[BlackElo "1243"]
[Annotator "NA"]
[PlyCount "57"]
[EventDate "2019.08.03"]
[EventType "swiss"]
[EventCountry "GER"]
[SourceTitle "playchess.com"]
[Source "ChessBase"]
[SourceQuality "1"]
[TimeControl "40/5400+30:1800+30"]

1. b4 {[%emt 0:00:20]} d5 {[%emt 0:21:14]} 2. Bb2 {[%emt 0:00:17]} Bf5 {[%emt 0:06:38]} 3. Nf3 {[%emt 0:00:12]} e6 {[%emt 0:00:32]} 4. e3 {[%emt 0:00:12]} f6 {[%emt 0:00:48]} 5. b5 {[%emt 0:01:11]} Bc5 {[%emt 0:00:44]} 6. Nh4 {[%emt 0:01:06]} Bg6 {[%emt 0:00:45]} 7. Qg4 {[%emt 0:00:26]} Qe7 {[%emt 0:00:51]} 8. Nxg6 {[%emt 1:30:16]} hxg6 {[%emt 0:00:32]} 9. Qxg6+ {[%emt 0:00:00]} Kd7 {[%emt 0:03:53]} 10. a4 {[%emt 0:00:00]} c6 {[%emt 0:00:19]} 11. Na3 {[%emt 0:00:00]} a6 {[%emt 0:01:16]} 12. c4 {[%emt 0:00:00]} Nh6 {[%emt 0:02:17]} 13. Qc2 {[%emt 0:00:00]} Bd6 {[%emt 0:02:02]} 14. Be2 {[%emt 0:00:00]} Nf5 {[%emt 0:03:01]} 15. h3 {[%emt 0:00:00]} c5 {[%emt 0:01:09]} 16. cxd5 {[%emt 0:00:00]} exd5 {[%emt 0:00:49]} 17. Qxf5+ {[%emt 0:00:00]} Kc7 {[%emt 0:00:24]} 18. Qxd5 {[%emt 0:00:00]} Nd7 {[%emt 0:03:17]} 19. Bf3 {[%emt 0:00:00]} Rhb8 {[%emt 0:03:42]} 20. Bc3 {[%emt 0:00:00]} Kc8 {[%emt 0:03:05]} 21. O-O {[%emt 0:00:00]} Nb6 {[%emt 0:01:03]} 22. Qf5+ {[%emt 0:00:00]} Kc7 {[%emt 0:01:37]} 23. Ba5 {[%emt 0:00:00]} Be5 {[%emt 0:01:24]} 24. Nc4 {[%emt 0:00:00]} Kd8 {[%emt 0:04:03]} 25. Bxb6+ {[%emt 0:00:00]} Ke8 {[%emt 0:00:24]} 26. Bh5+ {[%emt 0:00:00]} g6 {[%emt 0:04:08]} 27. Nxe5 {[%emt 0:00:00]} fxe5 {[%emt 0:01:26]} 28. Bxg6+ {[%emt 0:00:00]} Qf7 {[%emt 0:01:07]} 29. Qxf7# {[%emt 0:00:00]} 1-0

[Event "Lueneburg Open-B 2019"]
[Site "Lueneburg"]
[Date "2019.08.05"]
[Round "3.1"]
[White "Fomenkov, Alexander"]
[Black "Suliga, Eckhard"]
[Result "1-0"]
[ECO "C08"]
[WhiteElo "1779"]
[BlackElo "1682"]
[Annotator "NA"]
[PlyCount "119"]
[EventDate "2019.08.03"]
[EventType "swiss"]
[EventCountry "GER"]
[SourceTitle "playchess.com"]
[Source "ChessBase"]
[SourceQuality "1"]
[TimeControl "40/5400+30:1800+30"]

1. e4 {[%emt 0:00:00]} e6 {[%emt 0:00:00]} 2. d4 {[%emt 0:00:00]} d5 {[%emt 0:00:00]} 3. Nd2 {[%emt 0:00:14]} c5 {[%emt 0:00:01]} 4. exd5 {[%emt 0:04:16]} exd5 {[%emt 0:00:34]} 5. Bb5+ {[%emt 0:01:27]} Nc6 {[%emt 0:00:08]} 6. dxc5 {[%emt 0:07:18]} Bxc5 {[%emt 0:00:36]} 7. Nb3 {[%emt 0:00:13]} Bd6 {[%emt 0:00:31]} 8. Nf3 {[%emt 0:00:59]} Nge7 {[%emt 0:00:30]} 9. O-O {[%emt 0:00:28]} O-O {[%emt 0:03:09]} 10. c3 {[%emt 0:01:53]} Qc7 {[%emt 0:08:54]} 11. h3 {[%emt 0:08:43]} Bf5 {[%emt 0:04:57]} 12. Bd3 {[%emt 0:01:02]} Bxd3 {[%emt 0:12:01]} 13. Qxd3 {[%emt 0:00:48]} Ne5 {[%emt 0:04:40]} 14. Nxe5 {[%emt 0:01:03]} Bxe5 {[%emt 0:00:02]} 15. Re1 {[%emt 0:00:11]} Rfe8 {[%emt 0:07:36]} 16. Be3 {[%emt 0:01:18]} a6 {[%emt 0:03:40]} 17. Bg5 {[%emt 0:02:29]} Rad8 {[%emt 0:01:58]} 18. Nd4 {[%emt 0:02:55]} Bxd4 {[%emt 0:02:59]} 19. Qxd4 {[%emt 0:00:50]} f6 {[%emt 0:07:12]} 20. Bf4 {[%emt 0:06:57]} Qc4 {[%emt 0:01:52]} 21. Qb6 {[%emt 0:01:18]} Qc6 {[%emt 0:00:46]} 22. Re6 {[%emt 0:01:33]} Qxb6 {[%emt 0:00:52]} 23. Rxb6 {[%emt 0:00:11]} Rd7 {[%emt 0:01:30]} 24. Re1 {[%emt 0:00:54]} Kf7 {[%emt 0:00:35]} 25. Rbe6 {[%emt 0:00:14]} Red8 {[%emt 0:03:23]} 26. Bd6 {[%emt 0:00:46]} Nc6 {[%emt 0:01:00]} 27. Bg3 {[%emt 0:09:34]} d4 {[%emt 0:03:21]} 28. cxd4 {[%emt 0:07:51]} Rxd4 {[%emt 0:01:19]} 29. a3 {[%emt 0:12:00]} Rd1 {[%emt 0:02:49]} 30. R6e3 {[%emt 0:13:21]} Rxe1+ {[%emt 0:01:46]} 31. Rxe1 {[%emt 0:00:05]} Rd2 {[%emt 0:00:13]} 32. b4 {[%emt 0:00:27]} Nd4 {[%emt 0:01:32]} 33. Re3 {[%emt 0:06:41]} Ne2+ {[%emt 0:05:16]} 34. Kh2 {[%emt 0:00:09]} Nxg3 {[%emt 0:02:48]} 35. Kxg3 {[%emt 0:00:11]} f5 {[%emt 0:02:00]} 36. Rc3 {[%emt 0:01:35]} Rd7 {[%emt 0:00:28]} 37. Kf4 {[%emt 0:00:32]} Kf6 {[%emt 0:01:09]} 38. Rc8 {[%emt 0:02:47]} g6 {[%emt 0:02:47]} 39. Rf8+ {[%emt 0:00:22]} Kg7 {[%emt 0:01:25]} 40. Rc8 {[%emt 0:00:53]} Kf6 {[%emt 0:00:03]} 41. Rf8+ {[%emt 0:31:41]} Kg7 {[%emt 0:30:02]} 42. Rb8 {[%emt 0:02:24]} Kf6 {[%emt 0:00:21]} 43. h4 {[%emt 0:00:00]} h6 {[%emt 0:00:00]} 44. Rf8+ {[%emt 0:00:00]} Kg7 {[%emt 0:00:00]} 45. Rb8 {[%emt 0:00:00]} Kf6 {[%emt 0:00:00]} 46. Ke3 {[%emt 0:00:00]} g5 {[%emt 0:00:00]} 47. Rf8+ {[%emt 0:00:00]} Kg7 {[%emt 0:00:00]} 48. Rxf5 {[%emt 0:00:00]} Kg6 {[%emt 0:00:00]} 49. Rf8 {[%emt 0:00:00]} Rc7 {[%emt 0:00:00]} 50. hxg5 {[%emt 0:00:00]} hxg5 {[%emt 0:00:00]} 51. Kd4 {[%emt 0:00:00]} Rc2 {[%emt 0:00:00]} 52. a4 {[%emt 0:00:00]} b5 {[%emt 0:00:00]} 53. a5 {[%emt 0:00:00]} Rc4+ {[%emt 0:00:00]} 54. Ke5 {[%emt 0:00:00]} Rxb4 {[%emt 0:00:00]} 55. Ra8 {[%emt 0:00:00]} Ra4 {[%emt 0:00:00]} 56. Rxa6+ {[%emt 0:00:00]} Kh5 {[%emt 0:00:00]} 57. Ra8 {[%emt 0:00:00]} Kg4 {[%emt 0:00:00]} 58. a6 {[%emt 0:00:00]} Ra3 {[%emt 0:03:55]} 59. a7 {[%emt 0:00:00]} b4 {[%emt 0:00:03]} 60. Kd4 {[%emt 0:11:27]} 1-0

[Event "Lueneburg Open-B 2019"]
[Site "Lueneburg"]
[Date "2019.08.05"]
[Round "3.2"]
[White "Groth, Matthias"]
[Black "Seeber, Helmut"]
[Result "1-0"]
[ECO "D66"]
[WhiteElo "1737"]
[BlackElo "1580"]
[Annotator "NA"]
[PlyCount "49"]
[EventDate "2019.08.03"]
[EventType "swiss"]
[EventCountry "GER"]
[SourceTitle "playchess.com"]
[Source "ChessBase"]
[SourceQuality "1"]
[TimeControl "40/5400+30:1800+30"]

1. d4 {[%emt 0:00:00]} d5 {[%emt 0:00:00]} 2. c4 {[%emt 0:00:00]} e6 {[%emt 0:00:00]} 3. Nc3 {[%emt 0:00:08]} Nf6 {[%emt 0:00:00]} 4. Nf3 {[%emt 0:00:36]} c6 {[%emt 0:00:43]} 5. Bg5 {[%emt 0:02:28]} Be7 {[%emt 0:00:26]} 6. e3 {[%emt 0:00:12]} O-O {[%emt 0:01:44]} 7. Bd3 {[%emt 0:00:13]} Nbd7 {[%emt 0:00:37]} 8. O-O {[%emt 0:00:24]} h6 {[%emt 0:00:23]} 9. Bh4 {[%emt 0:01:02]} Re8 {[%emt 0:00:51]} 10. Rc1 {[%emt 0:00:36]} Nf8 {[%emt 0:01:00]} 11. Ne5 {[%emt 0:05:59]} dxc4 {[%emt 0:00:41]} 12. Bxc4 {[%emt 0:03:04]} Qb6 {[%emt 0:04:26]} 13. Bb3 {[%emt 0:06:17]} Bd7 {[%emt 0:00:31]} 14. Qf3 {[%emt 0:09:33]} Rac8 {[%emt 0:01:07]} 15. Ne4 {[%emt 0:05:00]} Qd8 {[%emt 0:08:21]} 16. Bxf6 {[%emt 0:10:54]} gxf6 {[%emt 0:23:57]} 17. Qg3+ {[%emt 0:01:21]} Ng6 {[%emt 0:06:52]} 18. Nxg6 {[%emt 0:05:48]} fxg6 {[%emt 0:01:14]} 19. Qxg6+ {[%emt 0:00:01]} Kf8 {[%emt 0:00:09]} 20. Qxh6+ {[%emt 0:00:48]} Kf7 {[%emt 0:00:28]} 21. Qh7+ {[%emt 0:00:35]} Kf8 {[%emt 0:00:50]} 22. Bd1 {[%emt 0:02:25]} e5 {[%emt 0:46:40]} 23. Bh5 {[%emt 0:44:06]} Be6 {[%emt 0:00:30]} 24. Qh8+ Bg8 {[%emt 0:00:30]} 25. Qh6# 1-0

[Event "Lueneburg Open-B 2019"]
[Site "Lueneburg"]
[Date "2019.08.05"]
[Round "3.3"]
[White "Domschke, Stephan"]
[Black "Wiese, Uwe"]
[Result "0-1"]
[ECO "A83"]
[WhiteElo "1671"]
[BlackElo "1737"]
[Annotator "NA"]
[PlyCount "38"]
[EventDate "2019.08.03"]
[EventType "swiss"]
[EventCountry "GER"]
[SourceTitle "playchess.com"]
[Source "ChessBase"]
[SourceQuality "1"]
[TimeControl "40/5400+30:1800+30"]

1. d4 {[%emt 0:00:00]} f5 {[%emt 0:00:00]} 2. e4 {[%emt 0:00:00]} fxe4 {[%emt 0:00:06]} 3. Nc3 {[%emt 0:00:00]} Nf6 {[%emt 0:00:22]} 4. Bg5 {[%emt 0:00:24]} c6 {[%emt 0:01:15]} 5. f3 {[%emt 0:03:20]} Qb6 {[%emt 0:03:59]} 6. Qd2 {[%emt 0:01:32]} d5 {[%emt 0:04:21]} 7. Bxf6 {[%emt 0:03:38]} gxf6 {[%emt 0:02:42]} 8. fxe4 {[%emt 0:00:24]} dxe4 {[%emt 0:00:52]} 9. O-O-O {[%emt 0:03:45]} h5 {[%emt 0:04:59]} 10. Kb1 {[%emt 0:00:34]} Bg4 {[%emt 0:01:49]} 11. Re1 {[%emt 0:00:21]} Bh6 {[%emt 0:02:38]} 12. Qf2 {[%emt 0:00:11]} e3 {[%emt 0:03:24]} 13. Qg3 {[%emt 0:01:54]} Qxd4 {[%emt 0:10:08]} 14. h3 {[%emt 0:07:31]} Bf5 {[%emt 0:02:46]} 15. Nge2 {[%emt 0:02:47]} Qd2 {[%emt 0:11:30]} 16. Rd1 {[%emt 0:06:58]} Bxc2+ {[%emt 0:03:44]} 17. Ka1 {[%emt 0:00:28]} Bxd1 {[%emt 0:00:36]} 18. Qg6+ {[%emt 0:00:53]} Kf8 {[%emt 0:01:23]} 19. Ne4 {[%emt 0:01:27]} Bc2 {[%emt 0:00:42]} 0-1

[Event "Lueneburg Open-B 2019"]
[Site "Lueneburg"]
[Date "2019.08.05"]
[Round "3.4"]
[White "Jessen, Bjarne"]
[Black "Neumann, Lutz"]
[Result "1/2-1/2"]
[ECO "A14"]
[WhiteElo "1569"]
[BlackElo "1784"]
[Annotator "NA"]
[PlyCount "24"]
[EventDate "2019.08.03"]
[EventType "swiss"]
[EventCountry "GER"]
[SourceTitle "playchess.com"]
[Source "ChessBase"]
[SourceQuality "1"]
[TimeControl "40/5400+30:1800+30"]

1. c4 {[%emt 0:00:00]} Nf6 {[%emt 0:00:38]} 2. g3 {[%emt 0:00:00]} e6 {[%emt 0:01:26]} 3. Bg2 {[%emt 0:00:00]} d5 {[%emt 0:00:59]} 4. Nf3 {[%emt 0:00:09]} c6 {[%emt 0:02:26]} 5. b3 {[%emt 0:00:09]} Be7 {[%emt 0:06:09]} 6. O-O {[%emt 0:00:19]} O-O {[%emt 0:02:13]} 7. Bb2 {[%emt 0:00:15]} Nbd7 {[%emt 0:01:04]} 8. d3 {[%emt 0:00:11]} Qc7 {[%emt 0:04:41]} 9. Nc3 {[%emt 0:03:10]} dxc4 {[%emt 0:02:54]} 10. dxc4 {[%emt 0:00:49]} Ne5 {[%emt 0:06:47]} 11. Qc2 {[%emt 0:05:31]} Nxf3+ {[%emt 0:00:55]} 12. Bxf3 {[%emt 0:00:20]} Rd8 {[%emt 0:05:57]} 1/2-1/2

[Event "Lueneburg Open-B 2019"]
[Site "Lueneburg"]
[Date "2019.08.05"]
[Round "3.5"]
[White "Buetow, Ingo"]
[Black "Ramme, Georg"]
[Result "0-1"]
[ECO "B43"]
[WhiteElo "1747"]
[BlackElo "1660"]
[Annotator "NA"]
[PlyCount "116"]
[EventDate "2019.08.03"]
[EventType "swiss"]
[EventCountry "GER"]
[SourceTitle "playchess.com"]
[Source "ChessBase"]
[SourceQuality "1"]
[TimeControl "40/5400+30:1800+30"]

1. e4 {[%emt 0:00:00]} c5 {[%emt 0:00:00]} 2. Nf3 {[%emt 0:00:00]} e6 {[%emt 0:00:00]} 3. d4 {[%emt 0:00:28]} cxd4 {[%emt 0:00:00]} 4. Nxd4 {[%emt 0:00:44]} a6 {[%emt 0:00:00]} 5. Nc3 {[%emt 0:00:28]} Qc7 {[%emt 0:00:14]} 6. Be3 {[%emt 0:10:06]} Nf6 {[%emt 0:00:45]} 7. f3 {[%emt 0:05:29]} Bb4 {[%emt 0:04:52]} 8. Qd2 {[%emt 0:01:23]} d5 {[%emt 0:04:39]} 9. exd5 {[%emt 0:08:36]} Nxd5 {[%emt 0:01:16]} 10. Nde2 {[%emt 0:00:55]} Nxe3 {[%emt 0:03:57]} 11. Qxe3 {[%emt 0:00:18]} Nc6 {[%emt 0:01:13]} 12. O-O-O {[%emt 0:12:35]} O-O {[%emt 0:01:25]} 13. Ng3 {[%emt 0:01:02]} Qe5 {[%emt 0:03:18]} 14. Qxe5 {[%emt 0:03:32]} Nxe5 {[%emt 0:00:15]} 15. Bd3 {[%emt 0:01:58]} Bd7 {[%emt 0:03:06]} 16. Rhe1 {[%emt 0:01:53]} Nxd3+ {[%emt 0:01:25]} 17. Rxd3 {[%emt 0:00:38]} Bc6 {[%emt 0:00:07]} 18. Red1 {[%emt 0:04:26]} Ba5 {[%emt 0:01:43]} 19. Nge2 {[%emt 0:05:57]} Rfd8 {[%emt 0:02:54]} 20. Nd4 {[%emt 0:03:09]} Be8 {[%emt 0:02:13]} 21. Nb3 {[%emt 0:01:45]} Bc7 {[%emt 0:02:18]} 22. Rxd8 {[%emt 0:05:14]} Rxd8 {[%emt 0:00:10]} 23. Rxd8 {[%emt 0:00:19]} Bxd8 {[%emt 0:00:33]} 24. Kd2 {[%emt 0:01:48]} Bc7 {[%emt 0:00:45]} 25. h3 {[%emt 0:00:19]} Kf8 {[%emt 0:00:38]} 26. Kd3 {[%emt 0:00:29]} Ke7 {[%emt 0:00:41]} 27. Kc4 {[%emt 0:01:08]} b6 {[%emt 0:06:58]} 28. Nd4 {[%emt 0:03:53]} f5 {[%emt 0:04:52]} 29. Kd3 {[%emt 0:01:13]} Be5 {[%emt 0:05:28]} 30. Nce2 {[%emt 0:01:24]} g5 {[%emt 0:01:50]} 31. g4 {[%emt 0:01:41]} Bd7 {[%emt 0:04:55]} 32. c4 {[%emt 0:00:53]} Kd6 {[%emt 0:02:21]} 33. b4 {[%emt 0:01:09]} Bc8 {[%emt 0:04:06]} 34. Nc3 {[%emt 0:01:01]} Bxd4 {[%emt 0:06:02]} 35. Kxd4 {[%emt 0:00:10]} Bb7 {[%emt 0:00:10]} 36. Ke3 {[%emt 0:04:17]} Ke5 {[%emt 0:00:49]} 37. Ne2 {[%emt 0:00:53]} f4+ {[%emt 0:02:39]} 38. Kf2 {[%emt 0:00:09]} Bc6 {[%emt 0:01:16]} 39. a3 {[%emt 0:02:36]} Ba4 {[%emt 0:01:32]} 40. Nc3 {[%emt 0:01:28]} Bb3 {[%emt 0:03:08]} 41. Ne4 {[%emt 0:32:09]} h6 {[%emt 0:30:51]} 42. c5 {[%emt 0:00:18]} bxc5 {[%emt 0:01:00]} 43. Nxc5 {[%emt 0:02:35]} Bc4 {[%emt 0:00:39]} 44. Nd7+ {[%emt 0:01:57]} Kd4 {[%emt 0:00:47]} 45. a4 {[%emt 0:02:58]} e5 {[%emt 0:03:56]} 46. Nb6 {[%emt 0:00:31]} Bd3 {[%emt 0:00:44]} 47. Nd7 {[%emt 0:00:47]} Bc2 {[%emt 0:07:46]} 48. b5 {[%emt 0:00:33]} Bxa4 {[%emt 0:01:35]} 49. b6 {[%emt 0:00:40]} Bc6 {[%emt 0:00:16]} 50. Nb8 {[%emt 0:00:24]} Bb7 {[%emt 0:00:22]} 51. Nd7 {[%emt 0:00:40]} a5 {[%emt 0:00:52]} 52. Ke2 {[%emt 0:00:16]} a4 {[%emt 0:00:16]} 53. Nf6 {[%emt 0:01:17]} a3 {[%emt 0:00:27]} 54. Ne4 {[%emt 0:00:04]} a2 {[%emt 0:00:25]} 55. Nd2 {[%emt 0:00:06]} Kc3 {[%emt 0:01:05]} 56. Ne4+ {[%emt 0:00:14]} Kb2 {[%emt 0:00:40]} 57. Nc5 {[%emt 0:00:08]} Bc6 {[%emt 0:00:31]} 58. b7 {[%emt 0:00:07]} Bxb7 {[%emt 0:00:06]} 0-1